[Event "*** SCC Grand Prix: Titled Tuesday Blitz"]
[Site "Chess.com"]
[Date "2020.08.11"]
[Round "5"]
[White "googlegoom"]
[Black "Alberquintin"]
[Result "1-0"]
[WhiteElo "2400"]
[BlackElo "2531"]
[TimeControl "180+1"]
[EndTime "10:53:12 PDT"]
[Termination "googlegoom won by resignation"]

1. Nf3 {[%clk 0:03:00.9]} 1... Nf6 {[%clk 0:02:59.5]} 2. b3 {[%clk 0:02:59]}
2... e6 {[%clk 0:02:56.7]} 3. Bb2 {[%clk 0:02:59.3]} 3... d5 {[%clk 0:02:57.1]}
4. e3 {[%clk 0:02:59.7]} 4... Bd6 {[%clk 0:02:52.3]} 5. Be2 {[%clk 0:03:00.2]}
5... O-O {[%clk 0:02:52.2]} 6. O-O {[%clk 0:03:00.8]} 6... b6 {[%clk 0:02:52.6]}
7. d4 {[%clk 0:03:01.4]} 7... Bb7 {[%clk 0:02:52.3]} 8. Nbd2 {[%clk 0:03:02.3]}
8... c5 {[%clk 0:02:52.4]} 9. c4 {[%clk 0:03:02.6]} 9... Nc6 {[%clk 0:02:51.9]}
10. Rc1 {[%clk 0:03:01.6]} 10... cxd4 {[%clk 0:02:51.5]} 11. Nxd4 {[%clk
0:03:01.4]} 11... Nxd4 {[%clk 0:02:49.8]} 12. Bxd4 {[%clk 0:03:01.4]} 12... Qe7
{[%clk 0:02:44.3]} 13. Qc2 {[%clk 0:02:53.3]} 13... Rac8 {[%clk 0:02:40.7]} 14.
Qb1 {[%clk 0:02:53.1]} 14... Rfd8 {[%clk 0:02:35]} 15. Rfd1 {[%clk 0:02:52.1]}
15... e5 {[%clk 0:02:32.7]} 16. Bb2 {[%clk 0:02:51.8]} 16... d4 {[%clk
0:02:32.7]} 17. exd4 {[%clk 0:02:49.7]} 17... exd4 {[%clk 0:02:32.9]} 18. Bf3
{[%clk 0:02:50.2]} 18... Bf4 {[%clk 0:02:09.4]} 19. Re1 {[%clk 0:02:39.4]} 19...
Qc7 {[%clk 0:02:03.4]} 20. Bxb7 {[%clk 0:02:30]} 20... Qxb7 {[%clk 0:01:49.6]}
21. Rcd1 {[%clk 0:02:28.9]} 21... Rc6 {[%clk 0:01:13.6]} 22. Nf3 {[%clk
0:02:23.9]} 22... Rcd6 {[%clk 0:01:00.3]} 23. Rxd4 {[%clk 0:02:21.7]} 23... Rxd4
{[%clk 0:00:58.2]} 24. Bxd4 {[%clk 0:02:20.9]} 24... Ng4 {[%clk 0:00:54.6]} 25.
Qe4 {[%clk 0:02:02.5]} 25... Qb8 {[%clk 0:00:19.3]} 26. g3 {[%clk 0:01:51.4]}
1-0

[Event "*** SCC Grand Prix: Titled Tuesday Blitz"]
[Site "Chess.com"]
[Date "2020.08.11"]
[Round "5"]
[White "Virgo15"]
[Black "Steven_Rojas"]
[Result "1-0"]
[WhiteElo "2686"]
[BlackElo "2460"]
[TimeControl "180+1"]
[EndTime "10:53:16 PDT"]
[Termination "Virgo15 won by resignation"]

1. d4 {[%clk 0:03:00.6]} 1... d5 {[%clk 0:02:59.7]} 2. Nf3 {[%clk 0:03:00.3]}
2... Nf6 {[%clk 0:02:59.4]} 3. Bf4 {[%clk 0:03:00.4]} 3... e6 {[%clk 0:02:58.7]}
4. e3 {[%clk 0:03:00.9]} 4... c5 {[%clk 0:02:56.8]} 5. c3 {[%clk 0:03:00.5]}
5... Bd6 {[%clk 0:02:54.2]} 6. Bg3 {[%clk 0:02:59.6]} 6... O-O {[%clk
0:02:53.3]} 7. Nbd2 {[%clk 0:02:58.9]} 7... Nc6 {[%clk 0:02:52.6]} 8. Bd3 {[%clk
0:02:58]} 8... b6 {[%clk 0:02:46.1]} 9. e4 {[%clk 0:02:56.7]} 9... Be7 {[%clk
0:02:45.6]} 10. e5 {[%clk 0:02:56.4]} 10... Nh5 {[%clk 0:02:45.5]} 11. Ng5
{[%clk 0:02:56.9]} 11... Nxg3 {[%clk 0:01:28.8]} 12. Bxh7+ {[%clk 0:02:41.8]}
12... Kh8 {[%clk 0:01:28.8]} 13. Nxf7+ {[%clk 0:02:22.6]} 13... Rxf7 {[%clk
0:01:21.7]} 14. hxg3 {[%clk 0:02:23]} 14... Bg5 {[%clk 0:00:32.8]} 15. Bg6+
{[%clk 0:02:02.3]} 15... Kg8 {[%clk 0:00:31.2]} 16. Qh5 {[%clk 0:02:02.5]} 16...
Bxd2+ {[%clk 0:00:06.2]} 17. Kxd2 {[%clk 0:02:01.2]} 17... Rxf2+ {[%clk
0:00:06]} 18. Ke1 {[%clk 0:01:56.2]} 18... Kf8 {[%clk 0:00:03.3]} 19. Qh8+
{[%clk 0:01:55.3]} 1-0

[Event "*** SCC Grand Prix: Titled Tuesday Blitz"]
[Site "Chess.com"]
[Date "2020.08.11"]
[Round "5"]
[White "TregubovP"]
[Black "FMOlexandrProhorov"]
[Result "1-0"]
[WhiteElo "2592"]
[BlackElo "2138"]
[TimeControl "180+1"]
[EndTime "10:53:17 PDT"]
[Termination "TregubovP won by resignation"]

1. e4 {[%clk 0:03:00.9]} 1... d6 {[%clk 0:02:41]} 2. d4 {[%clk 0:03:00.1]} 2...
Nf6 {[%clk 0:02:40.3]} 3. Nc3 {[%clk 0:02:59.4]} 3... g6 {[%clk 0:02:35]} 4. Nf3
{[%clk 0:02:59.4]} 4... Bg7 {[%clk 0:02:22.1]} 5. Be2 {[%clk 0:02:59.5]} 5...
O-O {[%clk 0:02:11.9]} 6. O-O {[%clk 0:02:58.8]} 6... c6 {[%clk 0:02:11.6]} 7.
a4 {[%clk 0:02:56.9]} 7... a5 {[%clk 0:02:10.4]} 8. Be3 {[%clk 0:02:52.8]} 8...
Na6 {[%clk 0:02:08.2]} 9. h3 {[%clk 0:02:50.9]} 9... Nb4 {[%clk 0:01:59.1]} 10.
Qd2 {[%clk 0:02:42.6]} 10... Qc7 {[%clk 0:01:51.1]} 11. Bh6 {[%clk 0:02:37]}
11... Rd8 {[%clk 0:01:45.2]} 12. Bxg7 {[%clk 0:02:36.6]} 12... Kxg7 {[%clk
0:01:44.8]} 13. Rfe1 {[%clk 0:02:35]} 13... b6 {[%clk 0:01:34.3]} 14. Bf1 {[%clk
0:02:31.6]} 14... e5 {[%clk 0:01:17.8]} 15. Rad1 {[%clk 0:02:27.7]} 15... Bb7
{[%clk 0:01:11.6]} 16. Qc1 {[%clk 0:02:11.4]} 16... Re8 {[%clk 0:01:08.8]} 17.
dxe5 {[%clk 0:01:59.3]} 17... dxe5 {[%clk 0:00:56.6]} 18. Bc4 {[%clk 0:01:59.7]}
18... h6 {[%clk 0:00:29.3]} 19. Rd2 {[%clk 0:01:48.5]} 19... Rad8 {[%clk
0:00:19.7]} 20. Red1 {[%clk 0:01:48.6]} 20... Rxd2 {[%clk 0:00:18.2]} 21. Qxd2
{[%clk 0:01:48.7]} 21... Rd8 {[%clk 0:00:19]} 22. Qxd8 {[%clk 0:01:47.8]} 1-0

[Event "*** SCC Grand Prix: Titled Tuesday Blitz"]
[Site "Chess.com"]
[Date "2020.08.11"]
[Round "5"]
[White "PauloCesarCosta_sad"]
[Black "talman67"]
[Result "0-1"]
[WhiteElo "2258"]
[BlackElo "2488"]
[TimeControl "180+1"]
[EndTime "10:53:22 PDT"]
[Termination "talman67 won on time"]

1. Nf3 {[%clk 0:03:00.9]} 1... Nf6 {[%clk 0:02:59.6]} 2. c4 {[%clk 0:03:00.8]}
2... e6 {[%clk 0:02:59.2]} 3. d4 {[%clk 0:03:00.4]} 3... d5 {[%clk 0:02:59.9]}
4. Nc3 {[%clk 0:03:00.3]} 4... c5 {[%clk 0:02:56.7]} 5. cxd5 {[%clk 0:02:59.5]}
5... Nxd5 {[%clk 0:02:57.6]} 6. e4 {[%clk 0:02:54.3]} 6... Nxc3 {[%clk
0:02:57.1]} 7. bxc3 {[%clk 0:02:55.2]} 7... cxd4 {[%clk 0:02:58]} 8. cxd4 {[%clk
0:02:55.2]} 8... Bb4+ {[%clk 0:02:58.5]} 9. Bd2 {[%clk 0:02:55.2]} 9... Bxd2+
{[%clk 0:02:59]} 10. Qxd2 {[%clk 0:02:55.1]} 10... O-O {[%clk 0:02:57.6]} 11.
Be2 {[%clk 0:02:49.1]} 11... Nd7 {[%clk 0:02:58.1]} 12. O-O {[%clk 0:02:48.2]}
12... b6 {[%clk 0:02:58.6]} 13. d5 {[%clk 0:02:26.7]} 13... exd5 {[%clk
0:02:59.5]} 14. Qxd5 {[%clk 0:02:25.4]} 14... Rb8 {[%clk 0:02:59]} 15. Rfd1
{[%clk 0:02:20.2]} 15... Qe7 {[%clk 0:02:59.2]} 16. e5 {[%clk 0:01:37.8]} 16...
Nc5 {[%clk 0:02:57.7]} 17. Bc4 {[%clk 0:01:23.7]} 17... Be6 {[%clk 0:02:56]} 18.
Qd4 {[%clk 0:01:15.2]} 18... Rbd8 {[%clk 0:02:53.8]} 19. Qf4 {[%clk 0:01:07.9]}
19... g5 {[%clk 0:02:47.1]} 20. Qc1 {[%clk 0:00:58.8]} 20... Rxd1+ {[%clk
0:02:40.9]} 21. Qxd1 {[%clk 0:00:24.9]} 21... Bxc4 {[%clk 0:02:40.2]} 22. Qc1
{[%clk 0:00:24.4]} 22... Bd5 {[%clk 0:02:38]} 23. Nxg5 {[%clk 0:00:23.9]} 23...
Qxe5 {[%clk 0:02:37.6]} 24. h4 {[%clk 0:00:20.1]} 24... Ne4 {[%clk 0:02:34.9]}
25. Qe3 {[%clk 0:00:14.2]} 25... Qxa1+ {[%clk 0:02:29.7]} 26. Kh2 {[%clk
0:00:14.3]} 26... Re8 {[%clk 0:02:22.2]} 27. Nxf7 {[%clk 0:00:07.6]} 27... Kxf7
{[%clk 0:02:19.6]} 28. Qf3+ {[%clk 0:00:05.9]} 28... Nf6 {[%clk 0:02:18.7]} 29.
Qxd5+ {[%clk 0:00:04.6]} 29... Nxd5 {[%clk 0:02:18.5]} 30. g3 {[%clk 0:00:05.5]}
30... Re2 {[%clk 0:02:17.4]} 31. h5 {[%clk 0:00:06.4]} 31... Qxa2 {[%clk
0:02:18.3]} 32. Kh3 {[%clk 0:00:05.8]} 32... Rxf2 {[%clk 0:02:19.2]} 33. h6
{[%clk 0:00:06.7]} 33... Nf6 {[%clk 0:02:18.7]} 0-1

[Event "*** SCC Grand Prix: Titled Tuesday Blitz"]
[Site "Chess.com"]
[Date "2020.08.11"]
[Round "5"]
[White "Bodnar_Mykola"]
[Black "sergiochess83"]
[Result "1-0"]
[WhiteElo "2541"]
[BlackElo "2816"]
[TimeControl "180+1"]
[EndTime "10:53:24 PDT"]
[Termination "Bodnar_Mykola won on time"]

1. e4 {[%clk 0:03:00.9]} 1... e5 {[%clk 0:02:56.6]} 2. Nf3 {[%clk 0:03:00.8]}
2... Nc6 {[%clk 0:02:56.9]} 3. Bc4 {[%clk 0:03:00.2]} 3... Bc5 {[%clk
0:02:56.1]} 4. c3 {[%clk 0:03:00.3]} 4... Nf6 {[%clk 0:02:56.3]} 5. d3 {[%clk
0:03:00.7]} 5... d6 {[%clk 0:02:56.2]} 6. O-O {[%clk 0:03:00.3]} 6... a6 {[%clk
0:02:56.7]} 7. a4 {[%clk 0:03:00.1]} 7... Ba7 {[%clk 0:02:54.2]} 8. h3 {[%clk
0:02:57.9]} 8... O-O {[%clk 0:02:48.7]} 9. Re1 {[%clk 0:02:57.6]} 9... Ne7
{[%clk 0:02:40.7]} 10. Nbd2 {[%clk 0:02:48.6]} 10... Ng6 {[%clk 0:02:40.7]} 11.
Nf1 {[%clk 0:02:48]} 11... c6 {[%clk 0:02:41]} 12. Ng3 {[%clk 0:02:41.6]} 12...
Re8 {[%clk 0:02:34.7]} 13. Bb3 {[%clk 0:02:33]} 13... h6 {[%clk 0:01:52.3]} 14.
d4 {[%clk 0:02:29.2]} 14... exd4 {[%clk 0:01:32.6]} 15. cxd4 {[%clk 0:02:30.1]}
15... d5 {[%clk 0:01:32.8]} 16. e5 {[%clk 0:02:29.3]} 16... Nh7 {[%clk
0:01:32.9]} 17. Bc2 {[%clk 0:02:26.6]} 17... Nhf8 {[%clk 0:01:31.3]} 18. Qd3
{[%clk 0:02:07.2]} 18... f6 {[%clk 0:01:17.1]} 19. Bd2 {[%clk 0:01:40.3]} 19...
fxe5 {[%clk 0:01:15.7]} 20. dxe5 {[%clk 0:01:41.2]} 1-0

[Event "*** SCC Grand Prix: Titled Tuesday Blitz"]
[Site "Chess.com"]
[Date "2020.08.11"]
[Round "5"]
[White "Anna_ChessMate"]
[Black "chessablanca"]
[Result "1-0"]
[WhiteElo "2610"]
[BlackElo "2419"]
[TimeControl "180+1"]
[EndTime "10:53:31 PDT"]
[Termination "Anna_ChessMate won by resignation"]

1. d4 {[%clk 0:03:00.9]} 1... Nf6 {[%clk 0:02:59.3]} 2. Nf3 {[%clk 0:03:00.7]}
2... e6 {[%clk 0:02:59.4]} 3. e3 {[%clk 0:02:59.4]} 3... d5 {[%clk 0:02:58]} 4.
Bd3 {[%clk 0:02:59.4]} 4... Bd6 {[%clk 0:02:57.3]} 5. O-O {[%clk 0:02:59.8]}
5... O-O {[%clk 0:02:57.5]} 6. b3 {[%clk 0:03:00.1]} 6... c5 {[%clk 0:02:50.8]}
7. Bb2 {[%clk 0:02:59.1]} 7... Nbd7 {[%clk 0:02:50.8]} 8. Ne5 {[%clk 0:02:59.2]}
8... Qc7 {[%clk 0:02:46]} 9. f4 {[%clk 0:02:59.6]} 9... b6 {[%clk 0:02:46.1]}
10. Nd2 {[%clk 0:02:55.8]} 10... Bb7 {[%clk 0:02:46.1]} 11. Rf3 {[%clk 0:02:54]}
11... Ne4 {[%clk 0:02:42.7]} 12. Rh3 {[%clk 0:02:51.6]} 12... f6 {[%clk
0:02:35.1]} 13. Nxe4 {[%clk 0:02:39]} 13... dxe4 {[%clk 0:02:30.9]} 14. Bc4
{[%clk 0:02:39.4]} 14... Rfe8 {[%clk 0:01:59.5]} 15. Qh5 {[%clk 0:02:26.2]}
15... Nf8 {[%clk 0:01:59.1]} 16. Ng4 {[%clk 0:02:12.9]} 16... Qf7 {[%clk
0:01:56.1]} 17. Qh4 {[%clk 0:01:49.9]} 17... Bd5 {[%clk 0:01:40]} 18. Bxd5
{[%clk 0:01:45.2]} 18... exd5 {[%clk 0:01:39.8]} 19. dxc5 {[%clk 0:01:45.6]}
19... bxc5 {[%clk 0:01:35.1]} 20. Bxf6 {[%clk 0:01:45.5]} 20... gxf6 {[%clk
0:01:26.5]} 21. Nh6+ {[%clk 0:01:45.1]} 21... Kg7 {[%clk 0:01:24.2]} 22. Rg3+
{[%clk 0:01:38.4]} 22... Qg6 {[%clk 0:01:18.6]} 23. Nf5+ {[%clk 0:01:38.7]}
23... Kh8 {[%clk 0:01:11.2]} 24. Nxd6 {[%clk 0:01:35.8]} 24... Qxg3 {[%clk
0:01:06.4]} 25. hxg3 {[%clk 0:01:27.5]} 25... Re6 {[%clk 0:01:03.8]} 26. Nf5
{[%clk 0:01:23]} 26... Ng6 {[%clk 0:01:03]} 27. Qh6 {[%clk 0:01:20.7]} 27... Rg8
{[%clk 0:01:02.1]} 28. Kf2 {[%clk 0:01:21]} 28... Rc6 {[%clk 0:00:59.7]} 29. Rh1
{[%clk 0:01:21]} 29... Rc7 {[%clk 0:00:59.1]} 30. Nh4 {[%clk 0:01:13.1]} 30...
Rf7 {[%clk 0:00:52.4]} 1-0

[Event "*** SCC Grand Prix: Titled Tuesday Blitz"]
[Site "Chess.com"]
[Date "2020.08.11"]
[Round "5"]
[White "Jovidon91"]
[Black "volkanyirik"]
[Result "1-0"]
[WhiteElo "2445"]
[BlackElo "2269"]
[TimeControl "180+1"]
[EndTime "10:53:41 PDT"]
[Termination "Jovidon91 won by resignation"]

1. d4 {[%clk 0:03:00.9]} 1... Nf6 {[%clk 0:02:55.9]} 2. c4 {[%clk 0:03:00.1]}
2... c5 {[%clk 0:02:56.2]} 3. Nf3 {[%clk 0:02:59]} 3... cxd4 {[%clk 0:02:55.7]}
4. Nxd4 {[%clk 0:02:59.9]} 4... e5 {[%clk 0:02:55.2]} 5. Nc2 {[%clk 0:02:55.7]}
5... d5 {[%clk 0:02:54.6]} 6. cxd5 {[%clk 0:02:55.5]} 6... Bc5 {[%clk
0:02:53.7]} 7. g3 {[%clk 0:02:47]} 7... Qxd5 {[%clk 0:02:44.4]} 8. Qxd5 {[%clk
0:02:45]} 8... Nxd5 {[%clk 0:02:45.3]} 9. Bg2 {[%clk 0:02:45]} 9... Nb4 {[%clk
0:02:45.7]} 10. Nxb4 {[%clk 0:02:43.7]} 10... Bxb4+ {[%clk 0:02:45.1]} 11. Bd2
{[%clk 0:02:43.9]} 11... Bxd2+ {[%clk 0:02:43.6]} 12. Nxd2 {[%clk 0:02:44.8]}
12... O-O {[%clk 0:02:42.7]} 13. Nc4 {[%clk 0:02:42.3]} 13... Nc6 {[%clk
0:02:26.1]} 14. Bxc6 {[%clk 0:02:38.3]} 14... bxc6 {[%clk 0:02:27]} 15. Nxe5
{[%clk 0:02:37.9]} 15... Re8 {[%clk 0:02:26.9]} 16. Nd3 {[%clk 0:02:36]} 16...
Bg4 {[%clk 0:02:22.5]} 17. e3 {[%clk 0:02:25.4]} 17... Bf3 {[%clk 0:02:19.6]}
18. Rg1 {[%clk 0:01:54.1]} 18... Red8 {[%clk 0:02:16.5]} 19. Nf4 {[%clk
0:01:50.2]} 19... Rd6 {[%clk 0:02:10.8]} 20. Ne2 {[%clk 0:01:47.8]} 20... Rad8
{[%clk 0:01:55.9]} 21. Nd4 {[%clk 0:01:43.8]} 21... Be4 {[%clk 0:01:52.9]} 22.
O-O-O {[%clk 0:01:41.2]} 22... c5 {[%clk 0:01:43.8]} 23. Nb5 {[%clk 0:01:38.4]}
23... R6d7 {[%clk 0:01:33.9]} 24. Rxd7 {[%clk 0:01:34.6]} 24... Rxd7 {[%clk
0:01:34.8]} 25. Rd1 {[%clk 0:01:34.2]} 25... Rxd1+ {[%clk 0:01:32.5]} 26. Kxd1
{[%clk 0:01:35.1]} 26... a5 {[%clk 0:01:31.9]} 27. Ke2 {[%clk 0:01:26]} 27...
Bd5 {[%clk 0:01:30.1]} 28. Nc3 {[%clk 0:01:21.4]} 28... Bc4+ {[%clk 0:01:29.4]}
29. Kd2 {[%clk 0:01:18]} 29... Kf8 {[%clk 0:01:29.6]} 30. b3 {[%clk 0:01:14.8]}
30... Ba6 {[%clk 0:01:28]} 31. Na4 {[%clk 0:01:12.3]} 31... c4 {[%clk
0:01:27.8]} 32. Nc5 {[%clk 0:01:12.1]} 32... cxb3 {[%clk 0:01:26.7]} 33. Nxb3
{[%clk 0:00:59.2]} 33... Bc4 {[%clk 0:01:22.4]} 34. Kc3 {[%clk 0:00:58.6]} 34...
Be6 {[%clk 0:01:20.2]} 35. a3 {[%clk 0:00:58.1]} 35... a4 {[%clk 0:01:17.2]} 1-0

[Event "*** SCC Grand Prix: Titled Tuesday Blitz"]
[Site "Chess.com"]
[Date "2020.08.11"]
[Round "5"]
[White "sorito"]
[Black "esrosenberg"]
[Result "0-1"]
[WhiteElo "2450"]
[BlackElo "2190"]
[TimeControl "180+1"]
[EndTime "10:53:53 PDT"]
[Termination "esrosenberg won by checkmate"]

1. Nf3 {[%clk 0:03:00.9]} 1... Nf6 {[%clk 0:02:59.5]} 2. d3 {[%clk 0:02:59.8]}
2... e6 {[%clk 0:02:51.3]} 3. Nbd2 {[%clk 0:03:00.7]} 3... d5 {[%clk 0:02:48.1]}
4. e4 {[%clk 0:03:01]} 4... c5 {[%clk 0:02:45.3]} 5. g3 {[%clk 0:03:01.1]} 5...
Nc6 {[%clk 0:02:42.1]} 6. Bg2 {[%clk 0:03:01.4]} 6... Be7 {[%clk 0:02:36.1]} 7.
O-O {[%clk 0:02:57.6]} 7... b6 {[%clk 0:02:32.4]} 8. Re1 {[%clk 0:02:57.9]} 8...
Bb7 {[%clk 0:02:31.3]} 9. c3 {[%clk 0:02:56.7]} 9... dxe4 {[%clk 0:02:11.5]} 10.
dxe4 {[%clk 0:02:56.3]} 10... O-O {[%clk 0:02:07]} 11. Qc2 {[%clk 0:02:55.7]}
11... h6 {[%clk 0:01:58]} 12. a4 {[%clk 0:02:54.4]} 12... a6 {[%clk 0:01:55.1]}
13. e5 {[%clk 0:02:49.7]} 13... Nd5 {[%clk 0:01:52]} 14. h4 {[%clk 0:02:46.7]}
14... Ra7 {[%clk 0:01:45.4]} 15. Nf1 {[%clk 0:02:46.7]} 15... Qa8 {[%clk
0:01:31.5]} 16. N1h2 {[%clk 0:02:46.2]} 16... f5 {[%clk 0:01:12.5]} 17. exf6
{[%clk 0:02:45.5]} 17... Rxf6 {[%clk 0:00:57.2]} 18. Ng4 {[%clk 0:02:44.5]}
18... Ncb4 {[%clk 0:00:31.5]} 19. Nxf6+ {[%clk 0:02:39.2]} 19... Bxf6 {[%clk
0:00:31.6]} 20. Qe2 {[%clk 0:02:32]} 20... Nxc3 {[%clk 0:00:20.3]} 21. bxc3
{[%clk 0:02:30.4]} 21... Bxc3 {[%clk 0:00:21.2]} 22. Qxe6+ {[%clk 0:02:29.8]}
22... Kh8 {[%clk 0:00:21.7]} 23. Bxh6 {[%clk 0:02:29.2]} 23... Bxf3 {[%clk
0:00:19.5]} 24. Qe8+ {[%clk 0:02:16.2]} 24... Qxe8 {[%clk 0:00:19.1]} 25. Rxe8+
{[%clk 0:02:15.5]} 25... Kh7 {[%clk 0:00:19.7]} 26. Rc1 {[%clk 0:01:54]} 26...
Bxg2 {[%clk 0:00:19]} 27. Rxc3 {[%clk 0:01:49.1]} 27... Bc6 {[%clk 0:00:16.9]}
28. Re6 {[%clk 0:01:41]} 28... gxh6 {[%clk 0:00:16.8]} 29. Rce3 {[%clk
0:01:39.7]} 29... Rd7 {[%clk 0:00:14.2]} 30. Rf6 {[%clk 0:01:38.9]} 30... Rd1+
{[%clk 0:00:13.9]} 31. Kh2 {[%clk 0:01:24]} 31... Rh1# {[%clk 0:00:14]} 0-1

[Event "*** SCC Grand Prix: Titled Tuesday Blitz"]
[Site "Chess.com"]
[Date "2020.08.11"]
[Round "5"]
[White "ArjunErigaisi2003"]
[Black "wannabe2700"]
[Result "1-0"]
[WhiteElo "3020"]
[BlackElo "2664"]
[TimeControl "180+1"]
[EndTime "10:53:55 PDT"]
[Termination "ArjunErigaisi2003 won by resignation"]

1. d4 {[%clk 0:03:00.9]} 1... f5 {[%clk 0:01:44.3]} 2. Bg5 {[%clk 0:02:58.9]}
2... h6 {[%clk 0:01:44.2]} 3. Bh4 {[%clk 0:02:58.7]} 3... g5 {[%clk 0:01:44.7]}
4. Bg3 {[%clk 0:02:58.6]} 4... Bg7 {[%clk 0:01:45.1]} 5. e3 {[%clk 0:02:57.8]}
5... c5 {[%clk 0:01:45.4]} 6. h4 {[%clk 0:02:32.3]} 6... Qb6 {[%clk 0:01:40.6]}
7. hxg5 {[%clk 0:02:14.5]} 7... cxd4 {[%clk 0:01:37.6]} 8. exd4 {[%clk
0:01:45.9]} 8... Qxb2 {[%clk 0:01:34.8]} 9. Nd2 {[%clk 0:01:43.1]} 9... Qxd4
{[%clk 0:01:19.7]} 10. Rb1 {[%clk 0:01:39.6]} 10... hxg5 {[%clk 0:00:21.1]} 11.
Rxh8 {[%clk 0:01:38.3]} 11... Bxh8 {[%clk 0:00:20.8]} 12. Qh5+ {[%clk
0:01:38.9]} 12... Kf8 {[%clk 0:00:20]} 13. Ngf3 {[%clk 0:01:39.2]} 13... Qc3
{[%clk 0:00:18.9]} 14. Nxg5 {[%clk 0:01:33.9]} 14... Qg7 {[%clk 0:00:18.1]} 15.
Nh7+ {[%clk 0:01:33]} 15... Qxh7 {[%clk 0:00:17]} 16. Qxh7 {[%clk 0:01:33.9]}
16... Bg7 {[%clk 0:00:16.4]} 17. Qxf5+ {[%clk 0:01:33.2]} 17... Nf6 {[%clk
0:00:14.7]} 18. Ne4 {[%clk 0:01:33]} 18... Nc6 {[%clk 0:00:14.8]} 19. Nxf6
{[%clk 0:01:31.4]} 19... Bxf6 {[%clk 0:00:15.3]} 20. Bh4 {[%clk 0:01:30.5]}
20... d5 {[%clk 0:00:14.9]} 21. Qf4 {[%clk 0:01:30.3]} 21... Kf7 {[%clk
0:00:14]} 22. Bxf6 {[%clk 0:01:29.9]} 22... exf6 {[%clk 0:00:14.9]} 23. Qc7+
{[%clk 0:01:29.8]} 23... Ne7 {[%clk 0:00:12.3]} 24. Bd3 {[%clk 0:01:29]} 24...
b6 {[%clk 0:00:11.6]} 25. Kd2 {[%clk 0:01:28.5]} 25... Be6 {[%clk 0:00:11.4]}
26. Re1 {[%clk 0:01:28.3]} 26... Re8 {[%clk 0:00:11.7]} 27. Qxa7 {[%clk
0:01:27.6]} 27... Bd7 {[%clk 0:00:07.4]} 28. Qxd7 {[%clk 0:01:27.3]} 1-0

[Event "*** SCC Grand Prix: Titled Tuesday Blitz"]
[Site "Chess.com"]
[Date "2020.08.11"]
[Round "5"]
[White "icychess54"]
[Black "Nikithebest"]
[Result "0-1"]
[WhiteElo "2224"]
[BlackElo "2413"]
[TimeControl "180+1"]
[EndTime "10:53:55 PDT"]
[Termination "Nikithebest won by resignation"]

1. c4 {[%clk 0:03:00.9]} 1... e6 {[%clk 0:02:59.5]} 2. Nf3 {[%clk 0:03:00]} 2...
d5 {[%clk 0:02:59.4]} 3. e3 {[%clk 0:02:59.2]} 3... Nf6 {[%clk 0:02:58.3]} 4.
Nc3 {[%clk 0:02:58.7]} 4... a6 {[%clk 0:02:55.8]} 5. Be2 {[%clk 0:02:58.5]} 5...
c5 {[%clk 0:02:55.8]} 6. cxd5 {[%clk 0:02:57.6]} 6... exd5 {[%clk 0:02:54.6]} 7.
d4 {[%clk 0:02:58]} 7... Nc6 {[%clk 0:02:53.9]} 8. O-O {[%clk 0:02:57.4]} 8...
Bd6 {[%clk 0:02:52.9]} 9. b3 {[%clk 0:02:54.4]} 9... O-O {[%clk 0:02:52.9]} 10.
Bb2 {[%clk 0:02:53.4]} 10... Re8 {[%clk 0:02:52.1]} 11. Rc1 {[%clk 0:02:52.3]}
11... cxd4 {[%clk 0:02:44.8]} 12. Nxd4 {[%clk 0:02:51.5]} 12... Nxd4 {[%clk
0:02:12.8]} 13. Qxd4 {[%clk 0:02:49.7]} 13... Be5 {[%clk 0:02:12.9]} 14. Qd2
{[%clk 0:02:43]} 14... d4 {[%clk 0:02:13.2]} 15. Rcd1 {[%clk 0:02:01.6]} 15...
Qc7 {[%clk 0:02:06.2]} 16. exd4 {[%clk 0:01:59.2]} 16... Bxh2+ {[%clk
0:02:05.9]} 17. Kh1 {[%clk 0:01:59.8]} 17... Bd6 {[%clk 0:02:02.4]} 18. Bf3
{[%clk 0:01:49.5]} 18... Bf5 {[%clk 0:02:00]} 19. d5 {[%clk 0:01:37.6]} 19...
Rad8 {[%clk 0:01:38.3]} 20. Rfe1 {[%clk 0:01:27.7]} 20... Bf4 {[%clk 0:01:37.4]}
21. Qd4 {[%clk 0:01:25.6]} 21... Be5 {[%clk 0:01:36.5]} 22. Qd2 {[%clk
0:00:52.4]} 22... Qd6 {[%clk 0:01:24.9]} 23. Qg5 {[%clk 0:00:26.6]} 23... Bc2
{[%clk 0:01:11.8]} 24. Rd2 {[%clk 0:00:14.1]} 24... Bf4 {[%clk 0:01:12]} 25. Re7
{[%clk 0:00:08.4]} 0-1

[Event "*** SCC Grand Prix: Titled Tuesday Blitz"]
[Site "Chess.com"]
[Date "2020.08.11"]
[Round "5"]
[White "PowerThinking2650"]
[Black "Fortitudine"]
[Result "1-0"]
[WhiteElo "2442"]
[BlackElo "2261"]
[TimeControl "180+1"]
[EndTime "10:54:00 PDT"]
[Termination "PowerThinking2650 won by resignation"]

1. e4 {[%clk 0:03:00.9]} 1... c5 {[%clk 0:02:59.4]} 2. Nf3 {[%clk 0:02:58.5]}
2... d6 {[%clk 0:02:59.5]} 3. d4 {[%clk 0:02:57.3]} 3... cxd4 {[%clk 0:03:00.4]}
4. Nxd4 {[%clk 0:02:58.2]} 4... Nf6 {[%clk 0:03:00.6]} 5. Nc3 {[%clk 0:02:58.2]}
5... Nc6 {[%clk 0:03:00.8]} 6. Bc4 {[%clk 0:02:57.5]} 6... Qb6 {[%clk
0:02:51.7]} 7. Ndb5 {[%clk 0:02:56.7]} 7... a6 {[%clk 0:02:45]} 8. Be3 {[%clk
0:02:56.1]} 8... Qa5 {[%clk 0:02:45.2]} 9. Nd4 {[%clk 0:02:56.1]} 9... Ng4
{[%clk 0:02:31.8]} 10. O-O {[%clk 0:02:33.6]} 10... Qe5 {[%clk 0:01:16.3]} 11.
Nf3 {[%clk 0:02:27.5]} 11... Nxe3 {[%clk 0:01:06.6]} 12. Bxf7+ {[%clk
0:02:18.3]} 12... Kd8 {[%clk 0:00:55.3]} 13. fxe3 {[%clk 0:02:17.5]} 13... Qc5
{[%clk 0:00:45.5]} 14. Qd2 {[%clk 0:02:02.8]} 14... Bg4 {[%clk 0:00:41.1]} 15.
Nd4 {[%clk 0:02:02]} 15... e5 {[%clk 0:00:32.1]} 16. Ne6+ {[%clk 0:01:56.1]}
16... Bxe6 {[%clk 0:00:31.3]} 17. Bxe6 {[%clk 0:01:57]} 17... Be7 {[%clk
0:00:24.6]} 18. Nd5 {[%clk 0:01:54.7]} 18... Bg5 {[%clk 0:00:16.3]} 19. b4
{[%clk 0:01:37.4]} 19... Qa7 {[%clk 0:00:15.9]} 20. Kh1 {[%clk 0:01:28]} 20...
Ne7 {[%clk 0:00:11.7]} 21. Rf7 {[%clk 0:01:22.8]} 21... Nxd5 {[%clk 0:00:11.8]}
22. Qxd5 {[%clk 0:01:22.3]} 22... Qb6 {[%clk 0:00:11.1]} 23. Rxb7 {[%clk
0:01:17.7]} 1-0